fUSD/lending_fUSD_20240418
["ID","MTS","AMOUNT","RATE_DAILY","PERIOD"]
[322876145,1713456649121,-421.999903,0.00017999,2]
[322876146,1713456649130,-887.584555,0.00017999,2]
[322876147,1713456649140,-151.0,0.00017999,2]
[322876148,1713456649149,-203.481194,0.00017999,2]
[322876149,1713456649158,-203.481194,0.00017999,2]
[322876150,1713456649168,-2467.692125,0.00017999,2]
[322876151,1713456649177,-2467.692125,0.00017999,2]
[322876152,1713456649186,-2721.286739,0.00017999,2]
[322876153,1713456649196,-190.032245,0.00017999,2]
[322876154,1713456649206,-2721.286739,0.00017999,2]
[322876155,1713456649215,-190.032245,0.00017999,2]
[322876156,1713456649225,-1396.106304,0.00017999,2]
[322876157,1713456649234,-357.942986,0.00017999,2]
[322876158,1713456649243,-1396.106304,0.00017999,2]
[322876159,1713456649253,-357.942986,0.00017999,2]
[322876160,1713456649262,-151.0,0.00017999,2]
[322876161,1713456649272,-151.0,0.00017999,2]
[322876162,1713456649281,-151.0,0.00017999,2]
[322876163,1713456649291,-285.3816,0.00017999,2]
[322876164,1713456649301,-285.3816,0.00017999,2]
[322876165,1713456649310,-151.0,0.00017999,2]
[322876166,1713456649319,-1774.906002,0.00017999,2]
[322876167,1713456649328,-1774.906002,0.00017999,2]
[322876168,1713456649337,-599.284516,0.00017999,2]
[322876169,1713456649346,-599.284516,0.00017999,2]
[322876170,1713456649356,-221.090691,0.00017999,2]
[322876171,1713456649365,-151.0,0.00017999,2]
[322876172,1713456649375,-151.0,0.00017999,2]
[322876173,1713456649385,-151.0,0.00017999,2]
[322876174,1713456649394,-221.090691,0.00017999,2]
[322876175,1713456649403,-525.440536,0.00017999,2]
[322876176,1713456649412,-525.440536,0.00017999,2]
[322876177,1713456649421,-151.0,0.00017999,2]
[322876178,1713456649430,-187.943335,0.00017999,2]
[322876179,1713456649443,-187.943335,0.00017999,2]
[322876180,1713456649458,-1069.506373,0.00017999,2]
[322876181,1713456649467,-1069.506373,0.00017999,2]
[322876182,1713456649477,-337.675504,0.00017999,2]
[322876183,1713456649487,-352.826732,0.00017999,2]
[322876184,1713456649497,-352.826732,0.00017999,2]
[322876185,1713456649508,-337.675504,0.00017999,2]
[322876186,1713456649518,-2564.90721598,0.00017999,2]
[322876187,1713456649528,-2000.0,0.00018,3]
[322876188,1713456649539,-1474.16348733,0.00018,2]
[322876189,1713456649548,-214683.86734233,0.00018,2]
[322876190,1713456651095,-487.02239247,0.00017998,2]
[322876191,1713456651106,-5840.66552927,0.00017998,2]
[322876192,1713456651115,-24522.78009819,0.00018,2]
[322876193,1713456651229,-285.5184421,0.00018,2]
[322876194,1713456651241,-896.60573097,0.00018,2]
[322876195,1713456651304,-316.01403212,0.00018,2]
[322876196,1713456652704,-17099.60708981,0.00018,2]
[322876197,1713456652717,-17048.29126736,0.00018,2]
[322876198,1713456652801,-2639.93389578,0.00018,2]
[322876199,1713456727639,2539.6742244,0.000135,2]
[322876200,1713456741860,26117.83635606,0.000137,30]
[322876201,1713456743997,2539.6742244,0.000135,2]
[322876202,1713456759224,1373.64319223,0.000135,2]
[322876203,1713456762052,2539.6742244,0.00012,2]
[322876204,1713456764952,1470.85904345,0.000135,2]
[322876205,1713456770322,953.24515214,0.00012825,2]
[322876206,1713456772106,20160.54124009,0.000135,2]
[322876207,1713456773959,1050.25667496,0.000135,2]
[322876208,1713456777426,1470.85904345,0.000135,2]
[322876209,1713456783403,953.24515214,0.00012825,2]
[322876210,1713456786614,2539.6742244,0.00012,2]
[322876211,1713456790054,15198.07276274,0.000135,2]
[322876212,1713456797482,1469.57464766,0.000135,2]
[322876213,1713456803443,953.24515214,0.00012825,2]
[322876214,1713456805644,2539.6742244,0.00012,2]
[322876215,1713456820126,2539.6742244,0.00012,2]
[322876216,1713456823728,1045.36158303,0.00012825,2]
[322876217,1713456837656,2539.6742244,0.00012,2]
[322876218,1713456857628,2539.6742244,0.00012,2]
[322876219,1713456877634,758.82057616,0.00012,2]
[322876220,1713457043685,3601.75,0.00028208,120]
[322876221,1713457053865,469.72,0.00014496,2]
[322876222,1713457148785,1035.83170704,0.00014496,2]
[322876223,1713457162370,1102.89161835,0.00014496,2]
[322876224,1713457269945,545.4,0.00016287,15]
[322876225,1713457579811,2094.48616639,0.00012215,2]
[322876226,1713457588779,483.8,0.00014248,2]
[322876227,1713457630679,545.48295772,0.0001303,2]
[322876228,1713457645901,500.0,0.000137,2]
[322876229,1713457654812,478.60550388,0.00011398,2]
[322876230,1713457676852,200.45809415,0.00013631,2]
[322876231,1713457736301,2000.0,0.0001454,2]
[322876232,1713457762835,511.31,0.00016113,15]
[322876233,1713457763089,511.31,0.00018853,15]
[322876250,1713457832420,-162.1409277,0.00015895,2]
[322876251,1713457832430,-1114.19024978,0.00015914,2]
[322876252,1713457832442,-1716.92970288,0.00015914,2]
[322876253,1713457832456,-880.49190557,0.00015914,2]
[322876254,1713457832492,-1649.53619494,0.00015914,2]
[322876255,1713457832666,-1016.27333657,0.00015914,2]
[322876256,1713457832678,-5523.78022088,0.00015914,2]
[322876257,1713457832687,-2641.140999,0.00015915,2]
[322876258,1713457832697,-536.72263243,0.00016095,2]
[322876259,1713457832706,-150.0,0.00016103,2]
[322876260,1713457832715,-150.0,0.00016103,2]
[322876261,1713457832725,-9159.635,0.00016104,2]
[322876262,1713457832734,-250.0,0.00016113,2]
[322876263,1713457832743,-2299.55,0.00016147,2]
[322876264,1713457832754,-656.38,0.00016159,2]
[322876265,1713457832763,-800.0,0.00016165,2]
[322876266,1713457832773,-435.46,0.00016178,2]
[322876267,1713457832782,-2000.0,0.00016184,2]
[322876268,1713457832791,-1782.49,0.00016188,2]
[322876269,1713457832801,-156.55076502,0.00016196,2]
[322876270,1713457832811,-399.15,0.00016196,2]
[322876271,1713457832824,-5482.59,0.00016204,2]
[322876272,1713457832834,-519.37,0.00016204,2]
[322876273,1713457832843,-183.0,0.00016215,2]
[322876274,1713457832853,-500.0,0.00016241,2]
[322876275,1713457832862,-249.72,0.00016281,2]
[322876276,1713457832873,-150.99,0.00016281,2]
[322876277,1713457832883,-1040.08149497,0.00016287,2]
[322876278,1713457832894,-11641.56556169,0.00016287,2]
[322876279,1713457832903,-1475.46,0.00016362,2]
[322876280,1713457832914,-616.3485,0.00016392,2]
[322876281,1713457832923,-200.0,0.0001643,2]
[322876282,1713457832932,-197.92,0.0001643,2]
[322876283,1713457832941,-483.8,0.00016511,2]
[322876284,1713457832951,-165.46,0.00016771,2]
[322876285,1713457832960,-3365.69,0.00016862,2]
[322876286,1713457832969,-3626.926,0.00016887,2]
[322876287,1713457832978,-3631.017,0.00017001,2]
[322876288,1713457832987,-1000.0,0.00017051,2]
[322876289,1713457832996,-10000.0,0.00017052,2]
[322876290,1713457833006,-3676.94,0.00017056,2]
[322876291,1713457833015,-900.0,0.0001728,2]
[322876292,1713457833024,-500.0,0.0001728,2]
[322876293,1713457833034,-150.0,0.00017288,2]
[322876294,1713457833043,-301.33,0.00017762,2]
[322876295,1713457833051,-1000.0,0.00017798,2]
[322876296,1713457833060,-593.1859986,0.000178,2]
[322876297,1713457833069,-1000.0,0.000178,2]
[322876298,1713457833078,-162.14092769,0.000178,2]
[322876299,1713457833088,-2000.0,0.00017828,2]
[322876300,1713457833097,-900.0,0.00017828,2]
[322876301,1713457833106,-593.18599856,0.00017847,2]
[322876302,1713457833115,-21492.41422203,0.0001788,2]
[322876303,1713457833124,-6895.48475869,0.0001788,2]
[322876304,1713457833379,-6511.70525926,0.0001788,2]
[322876305,1713457833389,-1671.6576,0.00017892,2]
[322876306,1713457833398,-593.18599856,0.00017895,2]
[322876307,1713457833407,-500.0,0.00017896,2]
[322876308,1713457833417,-380.67474491,0.00017896,2]
[322876309,1713457833426,-505.31252703,0.00017896,2]
[322876310,1713457833436,-155.2834944,0.00017896,2]
[322876311,1713457833445,-500.0,0.00017897,2]
[322876312,1713457833454,-500.0,0.00017897,2]
[322876313,1713457833463,-500.0,0.00017897,2]
[322876314,1713457833471,-500.0,0.00017897,2]
[322876315,1713457833481,-500.0,0.00017897,2]
[322876316,1713457833490,-500.0,0.00017897,2]
[322876317,1713457833499,-500.0,0.00017897,2]
[322876318,1713457833516,-500.0,0.00017897,2]
[322876319,1713457833525,-500.0,0.00017897,2]
[322876320,1713457833534,-500.0,0.00017897,2]
[322876321,1713457833544,-500.0,0.00017897,2]
[322876322,1713457833553,-500.0,0.00017897,2]
[322876323,1713457833563,-500.0,0.00017897,2]
[322876324,1713457833572,-500.0,0.00017897,2]
[322876325,1713457833581,-500.0,0.00017897,2]
[322876326,1713457833590,-500.0,0.00017897,2]
[322876327,1713457833600,-500.0,0.00017897,2]
[322876328,1713457833609,-500.0,0.00017897,2]
[322876329,1713457833617,-466.19524502,0.00017897,2]
[322876330,1713457833627,-23442.50094547,0.00017898,2]
[322876331,1713457833636,-173.26417456,0.00017898,2]
[322876332,1713457833645,-182.04271184,0.00017898,2]
[322876333,1713457833654,-164.54126561,0.00017898,2]
[322876334,1713457833663,-39998.6679,0.00017898,2]
[322876335,1713457833672,-63066.2773,0.00017898,2]
[322876336,1713457833682,-9622.29090539,0.00017898,2]
[322876337,1713457833693,-2764.96628365,0.00017898,2]
[322876338,1713457833704,-3645.27648316,0.00017898,2]
[322876339,1713457833716,-1153.17306,0.00017898,2]
[322876340,1713457833997,-4012.22838249,0.00017898,2]
[322876341,1713457834013,-382.93124891,0.00017898,2]
[322876342,1713457834025,-1250.0,0.00017898,2]
[322876353,1713457839804,-27061.14939622,0.00017898,2]
[322876354,1713457839848,-8163.35661182,0.00017898,2]
[322876355,1713457839859,-514.0,0.00017898,2]
[322876356,1713457839878,-8668.30132127,0.00017898,2]
[322876357,1713457839905,-419.6410628,0.00017898,2]
[322876358,1713457839917,-10938.88008307,0.00017898,2]
[322876359,1713457839951,-12800.00000502,0.00017898,2]
[322876360,1713457839977,-636.37,0.00017898,2]
[322876361,1713457841755,-278.13525569,0.00017898,2]
[322876398,1713457842574,-2032.2,0.00017898,2]
[322876401,1713457842601,-503.48872017,0.00017898,2]
[322876404,1713457842682,-1743.80421561,0.00017898,2]
[322876405,1713457842976,-665.89856255,0.00017898,2]
[322876414,1713457844556,-9072.56140592,0.00017898,2]
[322876415,1713457844625,-5495.69792393,0.00017898,2]
[322876416,1713457844640,-472.93999962,0.00017898,2]
[322876417,1713457844651,-473.286002,0.00017898,2]
[322876419,1713457846715,-1255.0,0.0001787,2]
[322876420,1713457846724,-7143.15513777,0.00017898,2]
[322876421,1713457846802,-11371.07114116,0.00017898,2]
[322876422,1713457846838,-5083.01515017,0.00017898,2]
[322876430,1713458254258,447.39,0.00016435,15]
[322876431,1713458280676,211.96,0.00024763,120]
[322876432,1713458498224,500.06,0.00013724,2]
[322876433,1713458737406,419.42,0.0001611,15]
[322876434,1713458737873,419.42,0.00018849,15]
[322876435,1713458843094,459.31071612,0.00015485,2]
[322876436,1713458906181,1040.08149497,0.00015485,2]
[322876440,1713458924138,1040.08149497,0.00015485,2]
[322876444,1713458940583,567.8971595,0.00015485,2]
[322876445,1713458946700,2000.0,0.00015476,3]
[322876452,1713458983115,527.36,0.00013583,2]
[322876459,1713459032643,-325.49677635,0.00015584,2]
[322876460,1713459032653,-36.11781086,0.00015585,2]
[322876461,1713459032664,-161.80218914,0.00015585,2]
[322876462,1713459032674,-902.26844668,0.00015591,2]
[322876463,1713459032686,-97.73155332,0.00015591,2]
[322876464,1713459032695,-250.0,0.000156,2]
[322876465,1713459032706,-1618.49720074,0.00015603,2]
[322876466,1713459032733,-469.29674785,0.00015603,2]
[322876467,1713459032745,-432.38722525,0.00015603,2]
[322876468,1713459032921,-314.42749356,0.00015603,2]
[322876469,1713459033922,156.82117765,0.000155,2]
[322876478,1713459037902,-262.65011809,0.00015603,2]
[322876480,1713459038015,-1424.46121451,0.00015603,2]
[322876482,1713459038025,-1039.48,0.00015616,2]
[322876483,1713459038035,-156.08,0.00015754,2]
[322876484,1713459038044,-527.36,0.00015847,2]
[322876485,1713459038054,-156.08,0.00016164,2]
[322876486,1713459038063,-150.0,0.00016329,2]
[322876487,1713459038072,-339.85,0.00016363,2]
[322876488,1713459038081,-339.85,0.00016368,2]
[322876489,1713459038090,-339.85,0.00016373,2]
[322876490,1713459038100,-339.85,0.00016378,2]
[322876491,1713459038110,-339.85,0.00016383,2]
[322876492,1713459038119,-339.85,0.00016388,2]
[322876493,1713459038129,-339.85,0.00016394,2]
[322876494,1713459038138,-339.85,0.00016399,2]
[322876495,1713459038148,-339.85,0.00016404,2]
[322876496,1713459038158,-339.85,0.00016409,2]
[322876497,1713459038168,-339.85,0.00016414,2]
[322876498,1713459038177,-339.85,0.00016419,2]
[322876499,1713459038186,-339.85,0.00016425,2]
[322876500,1713459038196,-339.85,0.0001643,2]
[322876501,1713459038206,-540.48,0.00016435,2]
[322876502,1713459038216,-339.85,0.00016435,2]
[322876503,1713459038225,-339.85,0.0001644,2]
[322876504,1713459038236,-339.85,0.00016445,2]
[322876505,1713459038250,-339.85,0.00016451,2]
[322876506,1713459038259,-339.85,0.00016456,2]
[322876507,1713459038269,-339.85,0.00016461,2]
[322876508,1713459038278,-211.96,0.00016508,2]
[322876509,1713459038291,-156.08,0.00016575,2]
[322876510,1713459038301,-225.0,0.00016852,2]
[322876511,1713459038310,-5000.0,0.000169,2]
[322876512,1713459038321,-178.61,0.00016932,2]
[322876513,1713459038331,-5241.10929362,0.00016949,2]
[322876514,1713459038343,-820.17749397,0.00016949,2]
[322876515,1713459038355,-313.27,0.00016949,2]
[322876516,1713459038366,-1340.01178555,0.00016949,2]
[322876517,1713459038424,-156.82117763,0.00016224,2]
[322876518,1713459038433,-494.37636237,0.00016949,2]
[322876519,1713459038445,-997.16507007,0.00016949,2]
[322876520,1713459038464,-4480.48753922,0.00016949,2]
[322876521,1713459038475,-4829.57152826,0.00016949,2]
[322876522,1713459038518,-2453.07925518,0.00016949,2]
[322876523,1713459038529,-7461.76781148,0.00016949,2]
[322876524,1713459038630,-2104.27401744,0.00016949,2]
[322876525,1713459038644,-72346.25863503,0.00016949,2]
[322876531,1713459040690,-3464.51519998,0.00016949,2]
[322876532,1713459040709,-5439.05225535,0.00016949,2]
[322876533,1713459040729,-834.8509417,0.00016949,2]
[322876534,1713459040741,-492.31580113,0.00016949,2]
[322876624,1713459043608,-7195.25160001,0.00016949,2]
[322876631,1713459046200,-156.82117763,0.00016947,2]
[322876632,1713459046211,-1761.59831183,0.00016949,2]
[322876633,1713459046226,-2249.37075421,0.00016949,2]
[322876634,1713459046289,-94271.77225856,0.00016949,2]
[322876635,1713459046299,-48073.4944,0.0001695,2]
[322876636,1713459046309,-2327.1845,0.0001695,2]
[322876637,1713459046320,-21663.24962509,0.0001695,2]
[322876638,1713459046330,-164.54126561,0.0001695,2]
[322876639,1713459046341,-5000.0,0.00017,2]
[322876640,1713459046352,-1250.0,0.00017,2]
[322876641,1713459046361,-151.22363177,0.00017037,2]
[322876642,1713459046371,-158.22,0.00017037,2]
[322876643,1713459046380,-158.22,0.00017037,2]
[322876644,1713459046390,-158.22,0.0001704,2]
[322876645,1713459046401,-158.22,0.0001704,2]
[322876646,1713459046410,-158.22,0.0001704,2]
[322876647,1713459046420,-158.22,0.0001704,2]
[322876648,1713459046429,-158.22,0.0001704,2]
[322876649,1713459046439,-158.22,0.0001704,2]
[322876650,1713459046448,-158.22,0.0001704,2]
[322876651,1713459046459,-158.22,0.0001704,2]
[322876652,1713459046469,-158.22,0.0001704,2]
[322876653,1713459046478,-158.22,0.0001704,2]
[322876654,1713459046487,-158.22,0.0001704,2]
[322876655,1713459046496,-158.22,0.0001704,2]
[322876656,1713459046505,-158.22,0.0001704,2]
[322876657,1713459046515,-158.22,0.0001704,2]
[322876658,1713459046524,-158.22,0.0001704,2]
[322876659,1713459046534,-158.22,0.0001704,2]
[322876660,1713459046543,-158.22,0.0001704,2]
[322876661,1713459046552,-158.22,0.0001704,2]
[322876662,1713459046562,-158.22,0.0001704,2]
[322876663,1713459046571,-158.22,0.0001704,2]
[322876664,1713459046580,-158.22,0.0001704,2]
[322876665,1713459046590,-158.22,0.0001704,2]
[322876666,1713459046598,-158.22,0.0001704,2]
[322876667,1713459046608,-158.22,0.0001704,2]
[322876668,1713459046617,-158.22,0.0001704,2]
[322876669,1713459046626,-158.22,0.0001704,2]
[322876670,1713459046635,-158.22,0.0001704,2]
[322876671,1713459046645,-158.22,0.0001704,2]
[322876672,1713459046654,-158.22,0.0001704,2]
[322876673,1713459046663,-158.22,0.0001704,2]
[322876674,1713459046672,-158.22,0.0001704,2]
[322876675,1713459046681,-158.22,0.0001704,2]
[322876676,1713459046691,-158.22,0.0001704,2]
[322876677,1713459046700,-158.22,0.0001704,2]
[322876678,1713459046709,-158.22,0.0001704,2]
[322876679,1713459046722,-158.22,0.0001704,2]
[322876680,1713459046763,-158.22,0.0001704,2]
[322876681,1713459046772,-158.22,0.0001704,2]
[322876682,1713459046781,-158.22,0.0001704,2]
[322876683,1713459046790,-158.22,0.0001704,2]
[322876684,1713459046800,-158.22,0.0001704,2]
[322876685,1713459046809,-158.22,0.0001704,2]
[322876686,1713459046818,-9629.25201466,0.00017047,2]
[322876687,1713459046943,-63640.00000002,0.00017047,2]
[322876688,1713459046954,-1651.92998125,0.00017047,2]
[322876689,1713459050176,-129085.20122207,0.00017047,2]
[322876690,1713459050414,-2162.294,0.00017047,2]
[322876691,1713459075143,1489.17806127,0.000154,2]
[322876692,1713459115795,11832.22059603,0.0001539,2]
[322876699,1713459176918,10000.0,0.00019,10]
[322876700,1713459222361,1745.83354019,0.00012784,2]
[322876701,1713459266229,750.0,0.000137,2]
[322876702,1713459277035,4472.83590608,0.00015,2]
[322876703,1713459304148,244.25184656,0.00028208,120]
[322876705,1713459465735,366.99,0.00016171,15]
[322876706,1713459467250,366.99,0.00018911,15]
[322876707,1713459525194,509.34,0.00014223,2]
[322876708,1713459627185,250.0,0.000137,2]
[322876709,1713459657011,221.89412981,0.00013631,2]
[322876710,1713459936393,321.11,0.0001611,15]
[322876711,1713459936779,321.11,0.00018849,15]
[322876712,1713460037552,502.66,0.00014055,2]
[322876743,1713460232227,-457.08997388,0.00015988,2]
[322876744,1713460232264,-977.25000006,0.00015988,2]
[322876745,1713460232276,-1087.0502,0.00015988,2]
[322876746,1713460232311,-1574.7093825,0.00015988,2]
[322876751,1713460232517,-607.62044356,0.00015988,2]
[322876752,1713460232527,-800.0,0.00015992,2]
[322876753,1713460232536,-250.0,0.00015996,2]
[322876754,1713460232546,-183.0,0.00016031,2]
[322876755,1713460232555,-164.0,0.00016255,2]
[322876756,1713460232564,-502.66,0.00016319,2]
[322876757,1713460232574,-200.0,0.00016331,2]
[322876758,1713460232583,-171.52,0.00016422,2]
[322876759,1713460232592,-499.99,0.00016712,2]
[322876760,1713460232602,-231.415735,0.00016712,2]
[322876761,1713460232611,-150.0,0.00016776,2]
[322876762,1713460232623,-150.0,0.00016846,2]
[322876763,1713460232634,-3153.73917175,0.00016848,2]
[322876764,1713460232645,-5179.99984845,0.00016848,2]
[322876765,1713460232709,-1684.59202001,0.00016848,2]
[322876766,1713460232720,-271.29633934,0.00016848,2]
[322876767,1713460232732,-976.87209743,0.00016848,2]
[322876773,1713460238180,-22091.47300556,0.00016848,2]
[322876774,1713460238192,-3073.7629553,0.00016848,2]
[322876775,1713460238247,-1797.26773946,0.00016848,2]
[322876786,1713460238387,-19.43379982,0.00016848,2]
[322876788,1713460238397,-5982.96674722,0.00016849,2]
[322876835,1713460241849,-158.97,0.00016239,2]
[322876836,1713460241859,-1269.50025564,0.00016849,2]
[322876837,1713460241872,-2478.91926119,0.00016849,2]
[322876838,1713460241899,-597.98521593,0.00016849,2]
[322876839,1713460241911,-1312.68988658,0.00016849,2]
[322876840,1713460241922,-2472.45473344,0.00016849,2]
[322876841,1713460241932,-689.77,0.00016849,2]
[322876842,1713460241941,-179.4379442,0.0001685,2]
[322876843,1713460241951,-668.95949,0.0001689,2]
[322876844,1713460241960,-1912.97951972,0.000169,2]
[322876845,1713460241986,-93.98147741,0.000169,2]
[322876846,1713460241995,-632.80800894,0.00016952,2]
[322876847,1713460242004,-668.9595,0.0001697,2]
[322876848,1713460242014,-124.25101365,0.00017,2]
[322876849,1713460242128,-303.71866227,0.00017,2]
[322876850,1713460242414,-850.96945315,0.00017,2]
[322876896,1713460246648,-743.03670201,0.00016947,2]
[322876901,1713460401211,605.31621099,0.00012216,2]
[322876902,1713460403043,10169.089576,0.00024,30]
[322876903,1713460462262,280.97,0.0001611,15]
[322876904,1713460462601,280.97,0.00018849,15]
[322876905,1713460527389,469.88,0.00014058,2]
[322876906,1713460557494,865.896815,0.00014058,2]
[322876907,1713460559953,155.0,0.00014058,2]
[322876908,1713460570189,699.70713238,0.00014058,2]
[322876909,1713460574899,155.0,0.00014058,2]
[322876910,1713460584856,942.59366944,0.00014058,2]
[322876911,1713460591180,155.0,0.00014058,2]
[322876912,1713460603184,942.59366944,0.00014058,2]
[322876913,1713460609670,182.95593239,0.00014058,2]
[322876914,1713460622523,464.34489146,0.00014058,2]
[322876916,1713460697604,-155.0,0.00015976,2]
[322876917,1713460697625,-1845.0,0.00015977,2]
[322876918,1713460698524,-1535.75647975,0.00015977,2]
[322876919,1713460698545,-464.24352025,0.00015977,2]
[322876920,1713460699053,-247.92084556,0.00015977,2]
[322876921,1713460699076,-537.67361309,0.00015978,2]
[322876922,1713460699099,-165.11,0.0001598,2]
[322876923,1713460699122,-1049.29554135,0.00015981,2]
[322876924,1713460700172,-692.13445865,0.00015981,2]
[322876925,1713460700195,-360.0,0.00016033,2]
[322876926,1713460743873,947.86554135,0.00015898,2]
[322876927,1713460743910,2000.0,0.00015898,2]
[322876928,1713460743948,258.21445865,0.00015898,2]
[322876929,1713460752045,749.05627992,0.00014659,2]
[322876930,1713460754734,992.72926143,0.00015981,2]
[322876931,1713460754758,2000.0,0.00015981,2]
[322876932,1713460754779,773.05910281,0.00015981,2]
[322876933,1713460759698,197.92,0.00015921,2]
[322876935,1713460806650,301.68444455,0.00012,2]
[322876936,1713460927662,250.0,0.00015803,2]
[322876937,1713460936271,-3000000.0,0.000255,30]
[322876938,1713460949914,245.84,0.0001611,15]
[322876939,1713460950227,245.84,0.00018849,15]
[322876940,1713460952804,-5000000.0,0.000255,30]
[322876941,1713460958076,150.0,0.00015995,2]
[322876942,1713460959143,-5000000.0,0.000255,30]
[322876943,1713461046359,327.33645264,0.00013973,2]
[322876944,1713461046386,248.88354736,0.00013973,2]
[322876945,1713461074789,712.0,0.00015863,2]
[322876946,1713461113566,1039.11645264,0.00012216,2]
[322876947,1713461113590,712.98954803,0.00012216,2]
[322876948,1713461123722,172.96455134,0.00015863,2]
[322876949,1713461131160,179.29,0.00012674,2]
[322876950,1713461131508,179.29,0.00015842,2]
[322876951,1713461146365,172.8707637,0.00015863,2]
[322876952,1713461161159,582.59513693,0.00015842,3]
[322876953,1713461161182,1417.40486307,0.00015842,3]
[322876954,1713461174724,151.54,0.00015961,2]
[322876955,1713461246874,250.0,0.000137,2]
[322876956,1713461252521,166.98,0.00015788,2]
[322876957,1713461278334,14.07513693,0.00015835,2]
[322876958,1713461278355,2000.0,0.00015835,2]
[322876959,1713461278376,458.38486307,0.00015835,2]
[322876960,1713461319035,166.63,0.00013699,2]
[322876961,1713461363457,749.26852786,0.00014659,2]
[322876962,1713461363762,240.27611559,0.00015835,2]
[322876963,1713461383920,385.44049348,0.00014659,2]
[322876964,1713461383941,363.61578644,0.00014659,2]
[322876982,1713461432510,-151.54,0.00016054,2]
[322876984,1713461432520,-151.54,0.00016146,2]
[322876986,1713461432530,-280.099465,0.00016164,2]
[322876988,1713461432539,-709.38578813,0.00016188,2]
[322877053,1713461433173,-633.21,0.00016188,2]
[322877055,1713461433186,-213.90281187,0.00016188,2]
[322877057,1713461433196,-576.22,0.00016237,2]
[322877059,1713461433206,-15.90160733,0.00016238,2]
[322877062,1713461433219,-135.63839267,0.00016238,2]
[322877063,1713461433229,-155.0,0.00016288,2]
[322877065,1713461433239,-557.37482275,0.00016288,2]
[322877067,1713461433248,-784.39215876,0.00016288,2]
[322877069,1713461433257,-503.62734077,0.00016288,2]
[322877071,1713461433267,-535.93386891,0.00016288,2]
[322877073,1713461433277,-14463.70926823,0.00016288,2]
[322877075,1713461433288,-210.04078145,0.00016288,2]
[322877077,1713461433298,-538.93739047,0.00016288,2]
[322877079,1713461433307,-13105.21275707,0.00016289,2]
[322877083,1713461433335,-6044.58057172,0.00016289,2]
[322877611,1713461438958,2000.0,0.00015904,2]
[322877612,1713461438985,315.32,0.00015904,2]
[322877635,1713461440132,-1626.16492115,0.00016289,2]
[322877636,1713461440147,-2571.68623154,0.00016289,2]
[322877637,1713461440158,-2271.93247767,0.0001629,2]
[322877638,1713461440183,-265.02255871,0.0001629,2]
[322877639,1713461440198,-1862.50161371,0.0001629,2]
[322877640,1713461440295,-2777.48470747,0.0001629,2]
[322877641,1713461440309,-857.75,0.0001629,2]
[322877642,1713461440323,-226120.79014856,0.0001629,2]
[322877643,1713461440335,-151.54,0.00016331,2]
[322877644,1713461440347,-169.56,0.00016408,2]
[322877645,1713461440359,-151.54,0.00016423,2]
[322877646,1713461440371,-151.54,0.00016516,2]
[322877647,1713461440382,-151.54,0.00016608,2]
[322877648,1713461440393,-151.54,0.000167,2]
[322877649,1713461440405,-1351.35615815,0.00016728,2]
[322877650,1713461440416,-161.09795527,0.0001679,2]
[322877651,1713461440428,-150.57,0.0001679,2]
[322877652,1713461440441,-151.54,0.00016793,2]
[322877653,1713461440454,-391521.26538818,0.000168,2]
[322877654,1713461440465,-749.99961,0.0001683,2]
[322877655,1713461440476,-468.46990928,0.00016847,2]
[322877656,1713461440489,-208.05430802,0.00016847,2]
[322877657,1713461440501,-8968.0208,0.00016847,2]